fUST/lending_fUST_20250901
["ID","MTS","AMOUNT","RATE_DAILY","PERIOD"]
[382633366,1756688984566,-500.0,0.00016049,2]
[382633367,1756688984702,-500.0,0.00016049,2]
[382633368,1756688984733,-500.0,0.00016049,2]
[382633369,1756688984763,-500.0,0.00016049,2]
[382633370,1756688984793,-500.0,0.00016049,2]
[382633371,1756688984823,-500.0,0.00016049,2]
[382633372,1756688984852,-500.0,0.00016049,2]
[382633373,1756688984882,-500.0,0.00016049,2]
[382633374,1756688984911,-500.0,0.00016049,2]
[382633375,1756688984944,-500.0,0.00016049,2]
[382633376,1756688984977,-500.0,0.00016049,2]
[382633377,1756688985378,-500.0,0.00016049,2]
[382633378,1756688985410,-500.0,0.00016049,2]
[382633379,1756688985443,-500.0,0.00016049,2]
[382633380,1756688985478,-500.0,0.00016049,2]
[382633381,1756688985508,-500.0,0.00016049,2]
[382633382,1756688985541,-500.0,0.00016049,2]
[382633383,1756688985572,-500.0,0.00016049,2]
[382633384,1756688985602,-500.0,0.00016049,2]
[382633385,1756688985633,-500.0,0.00016049,2]
[382633386,1756688985663,-500.0,0.00016049,2]
[382633387,1756688985831,-500.0,0.00016049,2]
[382633388,1756688985860,-500.0,0.00016049,2]
[382633389,1756688985891,-500.0,0.00016049,2]
[382633390,1756688985922,-500.0,0.00016049,2]
[382633391,1756688985951,-497.43248428,0.00016049,2]
[382633392,1756688985982,-762.5,0.00016049,3]
[382633393,1756688986010,-500.0,0.0001605,2]
[382633394,1756688986039,-204.79445492,0.0001605,2]
[382633395,1756688986067,-480.0,0.0001605,2]
[382633396,1756688986095,-480.0,0.0001605,2]
[382633397,1756688986263,-1122.55,0.0001605,2]
[382633398,1756688986290,-1442.1,0.0001605,2]
[382633399,1756688986318,-480.0,0.00016051,2]
[382633400,1756688986344,-480.0,0.00016051,2]
[382633401,1756688986371,-480.0,0.00016051,2]
[382633402,1756688986397,-850.28,0.00016051,2]
[382633403,1756688988479,-5.07057652,0.00016051,2]
[382633404,1756688988494,-474.92942348,0.00016051,2]
[382633405,1756688988504,-375.35057652,0.00016051,2]
[382633406,1756688988519,-104.64942348,0.00016051,2]
[382633407,1756688988530,-185.50057652,0.00016051,2]
[382633418,1756689032229,-1200.0,0.00016048,2]
[382633421,1756689032258,-300.0,0.00016048,2]
[382633423,1756689032287,-240.0,0.00016048,2]
[382633425,1756689032314,-300.0,0.00016048,2]
[382633429,1756689032341,-500.0,0.00016049,2]
[382633432,1756689032371,-500.0,0.00016049,2]
[382633436,1756689032398,-500.0,0.00016049,2]
[382633437,1756689032427,-500.0,0.00016049,2]
[382633438,1756689032457,-956.26727533,0.00016049,2]
[382633439,1756689032566,-500.0,0.00016049,2]
[382633440,1756689032597,-956.26727533,0.00016049,2]
[382633441,1756689032627,-500.0,0.00016049,2]
[382633442,1756689032659,-956.26727533,0.00016049,2]
[382633443,1756689032689,-500.0,0.00016049,2]
[382633444,1756689032720,-956.26727533,0.00016049,2]
[382633445,1756689032749,-500.0,0.00016049,2]
[382633446,1756689032860,-956.26727533,0.00016049,2]
[382633447,1756689032889,-500.0,0.00016049,2]
[382633448,1756689032919,-956.26727533,0.00016049,2]
[382633449,1756689032949,-956.26727533,0.00016049,2]
[382633450,1756689032977,-400.0,0.00016049,2]
[382633451,1756689033005,-500.0,0.00016049,2]
[382633452,1756689033036,-506.13907269,0.00016049,2]
[382633453,1756689033109,-450.12820264,0.00016049,2]
[382633454,1756689033138,-500.0,0.00016049,2]
[382633455,1756689033363,-956.26727533,0.00016049,2]
[382633456,1756689033394,-500.0,0.00016049,2]
[382633457,1756689033427,-956.26727533,0.00016049,2]
[382633458,1756689033459,-500.0,0.00016049,2]
[382633459,1756689033494,-956.26727533,0.00016049,2]
[382633460,1756689033617,-500.0,0.00016049,2]
[382633461,1756689033649,-956.26727533,0.00016049,2]
[382633462,1756689033681,-956.26727533,0.00016049,2]
[382633463,1756689033713,-956.26727533,0.00016049,2]
[382633464,1756689033746,-500.0,0.00016049,2]
[382633465,1756689033777,-956.26727533,0.00016049,2]
[382633466,1756689033875,-500.0,0.00016049,2]
[382633467,1756689033907,-956.26727533,0.00016049,2]
[382633468,1756689033936,-500.0,0.00016049,2]
[382633469,1756689033968,-956.26727533,0.00016049,2]
[382633470,1756689033998,-500.0,0.00016049,2]
[382633471,1756689034029,-956.26727533,0.00016049,2]
[382633472,1756689034059,-500.0,0.00016049,2]
[382633473,1756689034496,-956.26727533,0.00016049,2]
[382633474,1756689034527,-500.0,0.00016049,2]
[382633475,1756689034560,-956.26727533,0.00016049,2]
[382633476,1756689034590,-500.0,0.00016049,2]
[382633477,1756689034620,-956.26727533,0.00016049,2]
[382633478,1756689034650,-500.0,0.00016049,2]
[382633479,1756689034682,-306.13907269,0.00016049,2]
[382633480,1756689034797,-650.12820264,0.00016049,2]
[382633481,1756689034827,-956.26727533,0.00016049,2]
[382633482,1756689034855,-500.0,0.00016049,2]
[382633483,1756689034885,-500.0,0.00016049,2]
[382633484,1756689034916,-956.26727533,0.00016049,2]
[382633485,1756689034945,-500.0,0.00016049,2]
[382633486,1756689034975,-918.41721807,0.00016049,2]
[382633487,1756689035101,-37.85005726,0.00016049,2]
[382633488,1756689035131,-500.0,0.00016049,2]
[382633489,1756689035162,-956.26727533,0.00016049,2]
[382633490,1756689035192,-500.0,0.00016049,2]
[382633491,1756689035223,-956.26727533,0.00016049,2]
[382633492,1756689035256,-956.26727533,0.00016049,2]
[382633493,1756689035287,-500.0,0.00016049,2]
[382633494,1756689035318,-230.43895817,0.00016049,2]
[382633495,1756689035362,-725.82831716,0.00016049,2]
[382633496,1756689035392,-500.0,0.00016049,2]
[382633497,1756689035423,-956.26727533,0.00016049,2]
[382633498,1756689035452,-500.0,0.00016049,2]
[382633499,1756689035486,-500.0,0.00016049,2]
[382633500,1756689035516,-500.0,0.00016049,2]
[382633501,1756689035544,-500.0,0.00016049,2]
[382633502,1756689035572,-500.0,0.00016049,2]
[382633503,1756689035600,-135.81881502,0.00016049,2]
[382633504,1756689037046,-364.18118498,0.00016049,2]
[382633505,1756689037055,-331.71098457,0.00016049,2]
[382633506,1756689037069,-168.28901543,0.00016049,2]
[382633507,1756689037078,-214.03548761,0.00016049,2]
[382633508,1756689037088,-117.67549696,0.00016049,2]
[382633509,1756689037102,-382.32450304,0.00016049,2]
[382633510,1756689037111,-117.67549696,0.00016049,2]
[382633511,1756689037129,-382.32450304,0.00016049,2]
[382633512,1756689037139,-117.67549696,0.00016049,2]
[382633513,1756689037158,-382.32450304,0.00016049,2]
[382633514,1756689037168,-117.67549696,0.00016049,2]
[382633515,1756689037191,-382.32450304,0.00016049,2]
[382633516,1756689037200,-117.67549696,0.00016049,2]
[382633517,1756689037214,-382.32450304,0.00016049,2]
[382633518,1756689037223,-117.67549696,0.00016049,2]
[382633524,1756689037727,-342.7094211,0.00016049,2]
[382633525,1756689037737,-500.0,0.00016049,2]
[382633526,1756689037747,-500.0,0.00016049,2]
[382633528,1756689037757,-510.33706479,0.00016049,2]
[382633530,1756689037768,-500.0,0.00016049,2]
[382633532,1756689037777,-500.0,0.00016049,2]
[382633534,1756689037786,-500.0,0.00016049,2]
[382633536,1756689037796,-500.0,0.00016049,2]
[382633538,1756689037805,-500.0,0.00016049,2]
[382633540,1756689037814,-500.0,0.00016049,2]
[382633542,1756689037823,-303.58722162,0.00016049,2]
[382633544,1756689037832,-500.0,0.00016049,2]
[382633546,1756689037841,-500.0,0.00016049,2]
[382633548,1756689037851,-500.0,0.00016049,2]
[382633550,1756689037862,-500.0,0.00016049,2]
[382633551,1756689037871,-500.0,0.00016049,2]
[382633552,1756689037881,-500.0,0.00016049,2]
[382633553,1756689037890,-500.0,0.00016049,2]
[382633554,1756689037902,-500.0,0.00016049,2]
[382633555,1756689037911,-500.0,0.00016049,2]
[382633556,1756689037921,-500.0,0.00016049,2]
[382633557,1756689037930,-232.56198694,0.00016049,2]
[382633558,1756689037941,-500.0,0.00016049,2]
[382633559,1756689037952,-500.0,0.00016049,2]
[382633560,1756689037962,-500.0,0.00016049,2]
[382633561,1756689037973,-500.0,0.00016049,2]
[382633562,1756689037983,-500.0,0.00016049,2]
[382633563,1756689037992,-454.01349712,0.00016049,2]
[382633564,1756689038002,-500.0,0.00016049,2]
[382633565,1756689038012,-500.0,0.00016049,2]
[382633566,1756689038023,-500.0,0.00016049,2]
[382633567,1756689038033,-461.51602756,0.00016049,2]
[382633568,1756689038042,-500.0,0.00016049,2]
[382633569,1756689038052,-414.14341456,0.00016049,2]
[382633570,1756689038063,-500.0,0.00016049,2]
[382633571,1756689038072,-500.0,0.00016049,2]
[382633572,1756689038082,-500.0,0.00016049,2]
[382633573,1756689038091,-500.0,0.00016049,2]
[382633574,1756689038102,-500.0,0.00016049,2]
[382633575,1756689038111,-500.0,0.00016049,2]
[382633576,1756689038125,-500.0,0.00016049,2]
[382633577,1756689038135,-500.0,0.00016049,2]
[382633578,1756689038144,-500.0,0.00016049,2]
[382633579,1756689038155,-400.0,0.00016049,2]
[382633580,1756689038164,-500.0,0.00016049,2]
[382633581,1756689038173,-500.0,0.00016049,2]
[382633582,1756689038183,-500.0,0.00016049,2]
[382633583,1756689038193,-500.0,0.00016049,2]
[382633584,1756689038202,-596.91247541,0.00016049,2]
[382633585,1756689038212,-500.0,0.00016049,2]
[382633586,1756689038224,-500.0,0.00016049,2]
[382633587,1756689038233,-500.0,0.00016049,2]
[382633588,1756689038244,-500.0,0.00016049,2]
[382633589,1756689038253,-500.0,0.00016049,2]
[382633590,1756689038263,-387.47032433,0.00016049,2]
[382633591,1756689038273,-500.0,0.00016049,2]
[382633592,1756689038282,-500.0,0.00016049,2]
[382633593,1756689038291,-500.96792131,0.00016049,2]
[382633594,1756689038301,-500.0,0.00016049,2]
[382633595,1756689038310,-500.0,0.00016049,2]
[382633596,1756689038320,-500.0,0.00016049,2]
[382633597,1756689038330,-158.84346439,0.00016049,2]
[382633598,1756689038340,-500.0,0.00016049,2]
[382633599,1756689038349,-318.57425282,0.00016049,2]
[382633600,1756689038359,-480.0,0.00016049,2]
[382633601,1756689038368,-519.65,0.00016049,2]
[382633602,1756689038378,-480.0,0.0001605,2]
[382633603,1756689038388,-480.0,0.0001605,2]
[382633604,1756689038397,-480.0,0.0001605,2]
[382633605,1756689038407,-294.49942348,0.00016051,2]
[382633606,1756689038417,-621.71,0.00016051,2]
[382633607,1756689038427,-2820.71,0.00016051,2]
[382633608,1756689038436,-711.48,0.00016051,2]
[382633609,1756689038446,-480.0,0.00016051,2]
[382633610,1756689038455,-480.0,0.00016051,2]
[382633611,1756689038464,-1582.58,0.00016051,2]
[382633612,1756689038476,-480.0,0.00016051,2]
[382633613,1756689038487,-513.5,0.00016051,2]
[382633614,1756689038496,-480.0,0.00016051,2]
[382633615,1756689038506,-509.55,0.00016051,2]
[382633616,1756689038517,-480.0,0.00016051,2]
[382633617,1756689038527,-480.0,0.00016051,2]
[382633618,1756689038537,-682.77,0.00016051,2]
[382633619,1756689038548,-480.0,0.00016051,2]
[382633620,1756689038558,-480.0,0.00016051,2]
[382633621,1756689038568,-480.0,0.00016051,2]
[382633622,1756689038578,-480.0,0.00016052,2]
[382633623,1756689038588,-1291.7,0.00016052,2]
[382633624,1756689038597,-480.0,0.00016052,2]
[382633625,1756689038607,-489.68,0.00016052,2]
[382633626,1756689038617,-587.99,0.00016052,2]
[382633627,1756689038627,-634.54,0.00016052,2]
[382633628,1756689038636,-480.0,0.00016052,2]
[382633629,1756689038646,-2453.1,0.00016052,2]
[382633630,1756689038656,-571.71987851,0.00016052,2]
[382633631,1756689038665,-2091.03,0.00016052,2]
[382633632,1756689038674,-480.0,0.00016052,2]
[382633633,1756689038814,-480.0,0.00016052,2]
[382633634,1756689038858,-480.0,0.00016052,2]
[382633635,1756689038868,-480.0,0.00016052,2]
[382633636,1756689038878,-480.0,0.00016052,2]
[382633637,1756689038887,-500.0,0.00016053,2]
[382633638,1756689038897,-500.0,0.00016053,2]
[382633639,1756689038906,-500.0,0.00016053,2]
[382633640,1756689038916,-500.0,0.00016053,2]
[382633641,1756689038925,-500.0,0.00016053,2]
[382633642,1756689038934,-500.0,0.00016053,2]
[382633643,1756689038944,-500.0,0.00016053,2]
[382633644,1756689038954,-500.0,0.00016053,2]
[382633645,1756689038963,-500.0,0.00016053,2]
[382633646,1756689038973,-500.0,0.00016053,2]
[382633647,1756689038983,-383.60842587,0.00016053,2]
[382633648,1756689038992,-923.5,0.00016053,2]
[382633649,1756689039002,-480.0,0.00016053,2]
[382633650,1756689039011,-480.0,0.00016053,2]
[382633651,1756689039023,-480.0,0.00016053,2]
[382633652,1756689039032,-480.0,0.00016053,2]
[382633653,1756689039040,-480.0,0.00016053,2]
[382633654,1756689039049,-480.0,0.00016053,2]
[382633655,1756689039058,-480.0,0.00016053,2]
[382633656,1756689039067,-480.0,0.00016053,2]
[382633657,1756689039076,-553.75,0.00016053,2]
[382633658,1756689039085,-480.0,0.00016053,2]
[382633659,1756689039094,-480.0,0.00016053,2]
[382633660,1756689039103,-480.0,0.00016053,2]
[382633661,1756689039112,-480.0,0.00016053,2]
[382633662,1756689039120,-582.49111764,0.00016053,2]
[382633663,1756689039130,-500.0,0.00016053,2]
[382633664,1756689039139,-1558.0,0.00016053,2]
[382633665,1756689039148,-480.0,0.00016053,2]
[382633666,1756689039157,-481.13981514,0.00016053,2]
[382633667,1756689039167,-480.0,0.00016053,2]
[382633668,1756689039176,-500.0,0.00016053,2]
[382633669,1756689039186,-924.51,0.00016053,2]
[382633670,1756689039195,-480.0,0.00016053,2]
[382633671,1756689039205,-480.0,0.00016053,2]
[382633672,1756689039214,-480.0,0.00016053,2]
[382633673,1756689039223,-480.0,0.00016053,2]
[382633674,1756689039232,-500.0,0.00016053,2]
[382633675,1756689039241,-480.0,0.00016053,2]
[382633676,1756689039251,-480.0,0.00016053,2]
[382633677,1756689039260,-500.0,0.00016053,2]
[382633678,1756689039271,-151.0,0.00016053,2]
[382633679,1756689039280,-216.52043987,0.00016053,2]
[382633680,1756689039289,-535.44103704,0.00016053,2]
[382633681,1756689039299,-480.0,0.00016054,2]
[382633682,1756689039308,-480.0,0.00016054,2]
[382633683,1756689039317,-480.0,0.00016054,2]
[382633684,1756689039327,-480.0,0.00016054,2]
[382633685,1756689039337,-480.0,0.00016054,2]
[382633687,1756689039347,-480.0,0.00016054,2]
[382633689,1756689039356,-480.0,0.00016054,2]
[382633691,1756689039366,-480.0,0.00016054,2]
[382633692,1756689039375,-542.02,0.00016054,2]
[382633693,1756689039385,-586.15,0.00016054,2]
[382633694,1756689039395,-487.89368144,0.00016054,2]
[382633695,1756689039404,-480.0,0.00016054,2]
[382633696,1756689039414,-509.5,0.00016054,2]
[382633697,1756689039424,-340.52089374,0.00016054,2]
[382633698,1756689039433,-422.15046608,0.00016054,2]
[382633699,1756689039443,-480.0,0.00016054,2]
[382633700,1756689039452,-1496.31,0.00016054,2]
[382633701,1756689039462,-480.0,0.00016054,2]
[382633702,1756689039475,-480.0,0.00016054,2]
[382633703,1756689039484,-480.0,0.00016054,2]
[382633704,1756689039494,-480.0,0.00016054,2]
[382633705,1756689039503,-610.21,0.00016054,2]
[382633706,1756689039514,-480.0,0.00016054,2]
[382633707,1756689039525,-480.0,0.00016054,2]
[382633708,1756689039534,-663.98,0.00016054,2]
[382633709,1756689039544,-880.91,0.00016054,2]
[382633710,1756689039553,-480.0,0.00016054,2]
[382633711,1756689039563,-554.06,0.00016054,2]
[382633712,1756689039572,-1151.55,0.00016054,2]
[382633713,1756689039581,-229.42569304,0.00016054,2]
[382633714,1756689039591,-798.54,0.00016054,2]
[382633715,1756689039600,-513.77,0.00016054,2]
[382633716,1756689039609,-577.22162253,0.00016054,2]
[382633717,1756689039618,-480.0,0.00016054,2]
[382633718,1756689039627,-480.0,0.00016054,2]
[382633719,1756689039637,-480.0,0.00016054,2]
[382633720,1756689039647,-480.0,0.00016054,2]
[382633721,1756689039656,-198.0,0.00016054,2]
[382633722,1756689039666,-151.0,0.00016054,2]
[382633723,1756689039676,-500.0,0.00016054,2]
[382633724,1756689039686,-151.0,0.00016054,2]
[382633725,1756689039695,-198.0,0.00016054,2]
[382633726,1756689039705,-151.0,0.00016054,2]
[382633728,1756689039713,-198.0,0.00016054,2]
[382633730,1756689039723,-151.0,0.00016054,2]
[382633732,1756689039732,-480.0,0.00016054,2]
[382633734,1756689039743,-500.89,0.00016054,2]
[382633736,1756689039752,-480.0,0.00016054,2]
[382633738,1756689039761,-480.0,0.00016054,2]
[382633740,1756689039774,-480.0,0.00016054,2]
[382633742,1756689039783,-500.0,0.00016054,2]
[382633745,1756689039793,-582.7,0.00016054,2]
[382633747,1756689039802,-771.53,0.00016054,2]
[382633749,1756689039811,-480.0,0.00016054,2]
[382633751,1756689039820,-500.75,0.00016054,2]
[382633753,1756689039829,-480.0,0.00016054,2]
[382633754,1756689039839,-151.0,0.00016054,2]
[382633756,1756689039848,-631.38,0.00016054,2]
[382633758,1756689039857,-981.71,0.00016054,2]
[382633760,1756689039866,-500.0,0.00016054,2]
[382633762,1756689039875,-151.0,0.00016054,2]
[382633764,1756689039885,-480.0,0.00016054,2]
[382633766,1756689039894,-994.5,0.00016054,2]
[382633768,1756689039903,-480.0,0.00016054,2]
[382633770,1756689039912,-480.0,0.00016054,2]
[382633772,1756689039921,-480.0,0.00016054,2]
[382633774,1756689039930,-932.83,0.00016054,2]
[382633776,1756689039939,-1289.01,0.00016054,2]
[382633778,1756689039948,-514.08,0.00016054,2]
[382633780,1756689039957,-776.13,0.00016054,2]
[382633782,1756689039967,-480.0,0.00016054,2]
[382633784,1756689039976,-480.0,0.00016054,2]
[382633786,1756689039985,-480.0,0.00016054,2]
[382633788,1756689039994,-480.0,0.00016054,2]
[382633790,1756689040004,-480.0,0.00016054,2]
[382633793,1756689040015,-480.0,0.00016054,2]
[382633795,1756689040026,-945.39,0.00016054,2]
[382633797,1756689040035,-480.0,0.00016054,2]
[382633799,1756689040045,-659.03,0.00016054,2]
[382633801,1756689040054,-480.0,0.00016054,2]
[382633803,1756689040063,-1115.88,0.00016054,2]
[382633805,1756689040072,-480.0,0.00016054,2]
[382633807,1756689040081,-891.1,0.00016054,2]
[382633809,1756689040090,-480.0,0.00016054,2]
[382633811,1756689040099,-857.01,0.00016054,2]
[382633813,1756689040108,-480.0,0.00016054,2]
[382633815,1756689040117,-480.0,0.00016054,2]
[382633817,1756689040126,-860.37,0.00016054,2]
[382633819,1756689040135,-480.0,0.00016054,2]
[382633821,1756689040144,-485.5,0.00016054,2]
[382633823,1756689040153,-480.0,0.00016054,2]
[382633825,1756689040163,-480.0,0.00016054,2]
[382633827,1756689040171,-480.0,0.00016054,2]
[382633829,1756689040180,-947.37,0.00016054,2]
[382633831,1756689040189,-990.54,0.00016054,2]
[382633833,1756689040198,-480.0,0.00016054,2]
[382633835,1756689040207,-480.0,0.00016054,2]
[382633837,1756689040216,-480.0,0.00016054,2]
[382633838,1756689040226,-480.0,0.00016054,2]
[382633840,1756689040235,-480.0,0.00016054,2]
[382633842,1756689040244,-480.0,0.00016054,2]
[382633844,1756689040253,-480.0,0.00016054,2]
[382633846,1756689040263,-1031.24,0.00016054,2]
[382633848,1756689040274,-480.0,0.00016054,2]
[382633851,1756689040285,-819.8,0.00016054,2]
[382633853,1756689040295,-480.0,0.00016056,2]
[382633855,1756689040305,-480.0,0.00016056,2]
[382633857,1756689040314,-480.0,0.00016056,2]
[382633859,1756689040324,-706.26,0.00016056,2]
[382633861,1756689040334,-1177.7,0.00016056,2]
[382633863,1756689040344,-6455.49,0.00016056,2]
[382633865,1756689040354,-1485.05,0.00016056,2]
[382633867,1756689040363,-4337.97,0.00016056,2]
[382633869,1756689040373,-480.0,0.00016056,2]
[382633871,1756689040382,-480.0,0.00016056,2]
[382633873,1756689040391,-1035.03,0.00016056,2]
[382633875,1756689040401,-6564.42,0.00016056,2]
[382633877,1756689040410,-3696.86,0.00016056,2]
[382633879,1756689040419,-482.7570103,0.00016056,2]
[382633881,1756689040429,-2494.64,0.00016056,2]
[382633883,1756689040438,-656.5,0.00016056,2]
[382633885,1756689040447,-480.0,0.00016056,2]
[382633887,1756689040457,-480.0,0.00016056,2]
[382633889,1756689040467,-480.0,0.00016056,2]
[382633891,1756689040480,-480.0,0.00016056,2]
[382633893,1756689040489,-2577.1,0.00016056,2]
[382633895,1756689040500,-160.0,0.00016057,2]
[382633897,1756689040509,-3756.17,0.00016057,2]
[382633899,1756689040522,-480.0,0.00016057,2]
[382633901,1756689040531,-1310.71,0.00016057,2]
[382633903,1756689040541,-480.0,0.00016059,2]
[382633905,1756689040551,-607.44,0.00016059,2]
[382633907,1756689040560,-480.0,0.00016059,2]
[382633909,1756689040570,-480.0,0.00016059,2]
[382633911,1756689040579,-480.0,0.00016059,2]
[382633913,1756689040588,-480.0,0.00016059,2]
[382633915,1756689040597,-1132.18,0.00016059,2]
[382633917,1756689040606,-601.44,0.00016059,2]
[382633919,1756689040615,-480.0,0.00016059,2]
[382633921,1756689040624,-480.0,0.00016059,2]
[382633923,1756689040633,-480.0,0.00016059,2]
[382633925,1756689040642,-445.54626521,0.00016059,2]
[382633927,1756689040653,-968.24,0.00016059,2]
[382633929,1756689040665,-685.39,0.00016059,2]
[382633931,1756689040674,-480.0,0.00016059,2]
[382633933,1756689040683,-480.0,0.00016059,2]
[382633935,1756689040692,-480.0,0.00016059,2]
[382633937,1756689040701,-541.01,0.00016059,2]
[382633939,1756689040711,-480.0,0.00016059,2]
[382633941,1756689040720,-1430.03,0.00016059,2]
[382633943,1756689040729,-480.0,0.00016059,2]
[382633945,1756689040737,-480.0,0.00016059,2]
[382633947,1756689040747,-510.17,0.00016059,2]
[382633949,1756689040756,-1359.72,0.00016059,2]
[382633951,1756689040765,-480.0,0.00016059,2]
[382633953,1756689040775,-1128.95,0.00016059,2]
[382633955,1756689040784,-480.0,0.00016059,2]
[382633957,1756689040794,-480.0,0.00016059,2]
[382633959,1756689040803,-1271.94,0.00016059,2]
[382633961,1756689040813,-480.0,0.00016059,2]
[382633963,1756689040824,-480.0,0.00016059,2]
[382633965,1756689040833,-480.0,0.00016059,2]
[382633967,1756689040842,-1247.55,0.00016059,2]
[382633968,1756689040850,-480.0,0.00016059,2]
[382633970,1756689040859,-480.0,0.00016059,2]
[382633972,1756689040868,-480.0,0.00016059,2]
[382633974,1756689040878,-480.0,0.00016059,2]
[382633976,1756689040887,-606.01,0.00016059,2]
[382633978,1756689040896,-480.0,0.00016059,2]
[382633980,1756689040905,-480.0,0.00016059,2]
[382633982,1756689040914,-480.0,0.00016059,2]
[382633984,1756689040924,-480.46872246,0.00016059,2]
[382633986,1756689040933,-597.33,0.00016059,2]
[382633988,1756689040943,-480.72266844,0.00016059,2]
[382633990,1756689040954,-480.0,0.00016059,2]
[382633992,1756689040963,-1018.09,0.00016059,2]
[382633994,1756689040972,-1127.08,0.00016059,2]
[382633996,1756689040982,-480.0,0.00016059,2]
[382633998,1756689040991,-958.16,0.00016059,2]
[382634000,1756689041000,-1167.29,0.00016059,2]
[382634002,1756689041009,-480.0,0.00016059,2]
[382634004,1756689041018,-480.0,0.00016059,2]
[382634006,1756689041027,-480.0,0.00016059,2]
[382634008,1756689041036,-481.80391927,0.00016059,2]
[382634010,1756689041045,-1072.46,0.00016059,2]
[382634012,1756689041054,-480.0,0.00016059,2]
[382634014,1756689041063,-1253.56184801,0.00016059,2]
[382634023,1756689041144,-186.58815199,0.00016059,2]
[382634025,1756689041154,-508.59,0.00016059,2]
[382634027,1756689041163,-404.62184801,0.00016059,2]
[382634030,1756689041175,-6.85800553,0.00016059,2]
[382634032,1756689041184,-480.0,0.00016059,2]
[382634034,1756689041193,-480.0,0.00016059,2]
[382634035,1756689041203,-480.0,0.00016059,2]
[382634037,1756689041211,-516.59,0.00016059,2]
[382634039,1756689041220,-480.0,0.00016059,2]
[382634041,1756689041229,-2022.72,0.00016059,2]
[382634043,1756689041238,-480.0,0.00016059,2]
[382634045,1756689041247,-1267.73,0.00016059,2]
[382634047,1756689041256,-480.0,0.00016059,2]
[382634049,1756689041266,-588.04,0.00016059,2]
[382634051,1756689041276,-613.2186366,0.0001606,2]
[382634053,1756689041285,-480.0,0.00016061,2]
[382634055,1756689041295,-480.0,0.00016061,2]
[382634057,1756689041304,-480.0,0.00016061,2]
[382634059,1756689041313,-480.0,0.00016061,2]
[382634062,1756689041323,-480.0,0.00016061,2]
[382634064,1756689041332,-480.0,0.00016061,2]
[382634066,1756689041341,-480.0,0.00016061,2]
[382634068,1756689041350,-480.0,0.00016061,2]
[382634070,1756689041360,-480.0,0.00016061,2]
[382634072,1756689041369,-480.0,0.00016061,2]
[382634073,1756689041379,-361.58620343,0.00016061,2]
[382634076,1756689041388,-480.0,0.00016061,2]
[382634078,1756689041397,-480.0,0.00016061,2]
[382634080,1756689041407,-480.0,0.00016061,2]
[382634082,1756689041418,-480.0,0.00016061,2]
[382634084,1756689041427,-480.0,0.00016061,2]
[382634086,1756689041436,-480.0,0.00016061,2]
[382634088,1756689041445,-480.0,0.00016061,2]
[382634090,1756689041454,-480.0,0.00016061,2]
[382634092,1756689041463,-494.47,0.00016061,2]
[382634094,1756689041476,-838.76,0.00016061,2]
[382634096,1756689041485,-480.0,0.00016061,2]